[Event "Titled Tuesday Blitz July 26 Early 2022"]
[White "Garrido, Denis"]
[Black "Estrada Nieto, Julian"]
[WhiteFideId "601217"]
[BlackFideId "5101018"]
[WhiteElo "2420"]
[BlackElo "2252"]
[Result "1-0"]
[Round "08"]
[TimeControl "180+1"]
[Date "2022.07.27"]
[WhiteClock "0:00:11"]
[BlackClock "0:00:01"]

1. e4 {[%clk 0:03:00]}  e5 {[%clk 0:02:59]} 2. Nf3 {[%clk 0:03:01]}  Nc6 {[%clk 0:02:59]} 3. Bb5 {[%clk 0:03:01]}  a6 {[%clk 0:02:59]} 4. Ba4 {[%clk 0:03:01]}  Nf6 {[%clk 0:03:00]} 5. Nc3 {[%clk 0:03:01]}  b5 {[%clk 0:02:55]} 6. Bb3 {[%clk 0:03:01]}  Be7 {[%clk 0:02:54]} 7. a4 {[%clk 0:03:01]}  b4 {[%clk 0:02:54]} 8. Nd5 {[%clk 0:03:01]}  O-O {[%clk 0:02:50]} 9. Nxf6+ {[%clk 0:03:00]}  Bxf6 {[%clk 0:02:49]} 10. Bd5 {[%clk 0:03:01]}  Rb8 {[%clk 0:02:43]} 11. d3 {[%clk 0:02:59]}  Ne7 {[%clk 0:02:42]} 12. Bb3 {[%clk 0:02:55]}  d5 {[%clk 0:02:38]} 13. O-O {[%clk 0:02:52]}  Be6 {[%clk 0:02:34]} 14. exd5 {[%clk 0:02:49]}  Bxd5 {[%clk 0:02:32]} 15. Bxd5 {[%clk 0:02:48]}  Qxd5 {[%clk 0:02:32]} 16. Re1 {[%clk 0:02:48]}  c5 {[%clk 0:02:21]} 17. Nd2 {[%clk 0:02:46]}  Nc6 {[%clk 0:02:19]} 18. Nc4 {[%clk 0:02:35]}  Rfe8 {[%clk 0:02:00]} 19. Re4 {[%clk 0:02:30]}  g6 {[%clk 0:01:53]} 20. Ne3 {[%clk 0:02:06]}  Qd7 {[%clk 0:01:46]} 21. Qf3 {[%clk 0:01:55]}  Bg7 {[%clk 0:01:46]} 22. Rh4 {[%clk 0:01:35]}  Nd4 {[%clk 0:01:33]} 23. Qd1 {[%clk 0:01:31]}  f5 {[%clk 0:01:20]} 24. f3 {[%clk 0:01:26]}  Qe7 {[%clk 0:00:57]} 25. Rh3 {[%clk 0:01:25]}  e4 {[%clk 0:00:39]} 26. f4 {[%clk 0:01:09]}  exd3 {[%clk 0:00:34]} 27. Qxd3 {[%clk 0:01:10]}  b3 {[%clk 0:00:22]} 28. c3 {[%clk 0:01:05]}  Nc2 {[%clk 0:00:17]} 29. Nxc2 {[%clk 0:00:59]}  bxc2 {[%clk 0:00:16]} 30. Re3 {[%clk 0:00:56]}  Qc7 {[%clk 0:00:07]} 31. Qxc2 {[%clk 0:00:53]}  Rxe3 {[%clk 0:00:07]} 32. Bxe3 {[%clk 0:00:52]}  Re8 {[%clk 0:00:07]} 33. Qd3 {[%clk 0:00:48]}  c4 {[%clk 0:00:07]} 34. Qd5+ {[%clk 0:00:48]}  Kh8 {[%clk 0:00:08]} 35. Kf2 {[%clk 0:00:40]}  Qb8 {[%clk 0:00:06]} 36. Rb1 {[%clk 0:00:35]}  Qb3 {[%clk 0:00:06]} 37. Qd2 {[%clk 0:00:34]}  h6 {[%clk 0:00:05]} 38. Re1 {[%clk 0:00:30]}  Qxa4 {[%clk 0:00:05]} 39. Bd4 {[%clk 0:00:30]}  Rxe1 {[%clk 0:00:04]} 40. Bxg7+ {[%clk 0:00:30]}  Kxg7 {[%clk 0:00:05]} 41. Kxe1 {[%clk 0:00:30]}  Qe8+ {[%clk 0:00:05]} 42. Kf2 {[%clk 0:00:30]}  Qe7 {[%clk 0:00:05]} 43. Qd4+ {[%clk 0:00:30]}  Kh7 {[%clk 0:00:04]} 44. Qxc4 {[%clk 0:00:29]}  Qd6 {[%clk 0:00:04]} 45. Qd4 {[%clk 0:00:29]}  Qc6 {[%clk 0:00:03]} 46. b4 {[%clk 0:00:28]}  Qc7 {[%clk 0:00:02]} 47. g3 {[%clk 0:00:28]}  h5 {[%clk 0:00:02]} 48. h4 {[%clk 0:00:28]}  Qe7 {[%clk 0:00:02]} 49. Qe5 {[%clk 0:00:27]}  Qd7 {[%clk 0:00:02]} 50. Ke2 {[%clk 0:00:27]}  Qa4 {[%clk 0:00:02]} 51. Qe7+ {[%clk 0:00:26]}  Kh6 {[%clk 0:00:02]} 52. Qf8+ {[%clk 0:00:26]}  Kh7 {[%clk 0:00:02]} 53. Qf7+ {[%clk 0:00:27]}  Kh6 {[%clk 0:00:03]} 54. Kd2 {[%clk 0:00:22]}  Qa3 {[%clk 0:00:02]} 55. Kd3 {[%clk 0:00:21]}  Qa1 {[%clk 0:00:02]} 56. Qf8+ {[%clk 0:00:21]}  Kh7 {[%clk 0:00:02]} 57. Qf7+ {[%clk 0:00:22]}  Kh6 {[%clk 0:00:03]} 58. Kd4 {[%clk 0:00:20]}  Qd1+ {[%clk 0:00:03]} 59. Kc5 {[%clk 0:00:20]}  Qf3 {[%clk 0:00:03]} 60. Qf8+ {[%clk 0:00:20]}  Kh7 {[%clk 0:00:03]} 61. Qf7+ {[%clk 0:00:20]}  Kh6 {[%clk 0:00:04]} 62. c4 {[%clk 0:00:20]}  Qxg3 {[%clk 0:00:04]} 63. b5 {[%clk 0:00:20]}  Qe3+ {[%clk 0:00:03]} 64. Kc6 {[%clk 0:00:20]}  axb5 {[%clk 0:00:04]} 65. cxb5 {[%clk 0:00:20]}  Qe4+ {[%clk 0:00:04]} 66. Qd5 {[%clk 0:00:19]}  Qxf4 {[%clk 0:00:04]} 67. b6 {[%clk 0:00:19]}  Qb8 {[%clk 0:00:02]} 68. Qd6 {[%clk 0:00:15]}  Qc8+ {[%clk 0:00:02]} 69. Qc7 {[%clk 0:00:15]}  Qa6 {[%clk 0:00:03]} 70. Qe7 {[%clk 0:00:15]}  Qc4+ {[%clk 0:00:02]} 71. Kb7 {[%clk 0:00:12]}  Qd5+ {[%clk 0:00:03]} 72. Kc8 {[%clk 0:00:12]}  Qc6+ {[%clk 0:00:03]} 73. Qc7 {[%clk 0:00:13]}  Qa8+ {[%clk 0:00:03]} 74. Qb8 {[%clk 0:00:12]}  Qc6+ {[%clk 0:00:03]} 75. Qc7 {[%clk 0:00:13]}  Qa8+ {[%clk 0:00:03]} 76. Kd7 {[%clk 0:00:13]}  Qd5+ {[%clk 0:00:03]} 77. Qd6 {[%clk 0:00:13]}  Qb7+ {[%clk 0:00:04]} 78. Ke6 {[%clk 0:00:13]}  Qc8+ {[%clk 0:00:03]} 79. Kf6 {[%clk 0:00:13]}  Qh8+ {[%clk 0:00:03]} 80. Ke6 {[%clk 0:00:12]}  Qc8+ {[%clk 0:00:04]} 81. Kd5 {[%clk 0:00:12]}  Qb7+ {[%clk 0:00:04]} 82. Kc5 {[%clk 0:00:13]}  Qa6 {[%clk 0:00:04]} 83. Qf8+ {[%clk 0:00:12]}  Kh7 {[%clk 0:00:03]} 84. Qe7+ {[%clk 0:00:12]}  Kh6 {[%clk 0:00:03]} 85. Qg5+ {[%clk 0:00:12]}  Kh7 {[%clk 0:00:03]} 86. Qe7+ {[%clk 0:00:13]}  Kh6 {[%clk 0:00:03]} 87. b7 {[%clk 0:00:11]}  Qa5+ {[%clk 0:00:03]} 88. Kc6 {[%clk 0:00:11]}  Qa6+ {[%clk 0:00:04]} 89. Kc7 {[%clk 0:00:11]}  Qa5+ {[%clk 0:00:04]} 90. Kb8 {[%clk 0:00:11]}  Qd5 {[%clk 0:00:03]} 91. Qf8+ {[%clk 0:00:11]}  Kh7 {[%clk 0:00:03]} 92. Qe7+ {[%clk 0:00:10]}  Kh6 {[%clk 0:00:03]} 93. Qc7 {[%clk 0:00:09]}  f4 {[%clk 0:00:02]} 94. Qxf4+ {[%clk 0:00:09]}  Kg7 {[%clk 0:00:03]} 95. Qc7+ {[%clk 0:00:09]}  Kh6 {[%clk 0:00:03]} 96. Kc8 {[%clk 0:00:10]}  Qe6+ {[%clk 0:00:03]} 97. Qd7 {[%clk 0:00:10]}  Qc4+ {[%clk 0:00:03]} 98. Kd8 {[%clk 0:00:10]}  Qb4 {[%clk 0:00:02]} 99. Qc7 {[%clk 0:00:06]}  Qf8+ {[%clk 0:00:02]} 100. Kd7 {[%clk 0:00:07]}  Qf7+ {[%clk 0:00:02]} 101. Kc6 {[%clk 0:00:07]}  Qc4+ {[%clk 0:00:02]} 102. Kb6 {[%clk 0:00:07]}  Qb4+ {[%clk 0:00:03]} 103. Kc6 {[%clk 0:00:08]}  Qc4+ {[%clk 0:00:03]} 104. Kb6 {[%clk 0:00:08]}  Qb4+ {[%clk 0:00:03]} 105. Ka7 {[%clk 0:00:08]}  Qa4+ {[%clk 0:00:03]} 106. Kb8 {[%clk 0:00:09]}  Qe4 {[%clk 0:00:02]} 107. Qd6 {[%clk 0:00:07]}  Qe8+ {[%clk 0:00:02]} 108. Kc7 {[%clk 0:00:08]}  Qf7+ {[%clk 0:00:02]} 109. Qd7 {[%clk 0:00:08]}  Qc4+ {[%clk 0:00:02]} 110. Qc6 {[%clk 0:00:08]}  Qf7+ {[%clk 0:00:01]} 111. Qd7 {[%clk 0:00:09]}  Qc4+ {[%clk 0:00:01]} 112. Kd8 {[%clk 0:00:10]}  Qg8+ {[%clk 0:00:01]} 113. Ke7 {[%clk 0:00:10]}  Qg7+ {[%clk 0:00:01]} 114. Ke6 {[%clk 0:00:11]}  Qg8+ {[%clk 0:00:01]} 115. Kd6 {[%clk 0:00:11]}  Qf8+ {[%clk 0:00:01]} 116. Qe7 {[%clk 0:00:11]} 1-0


[Site "https://www.chess.com"]

[Event "Titled Tuesday Blitz July 26 Early 2022"]
[White "Guzman, Christopher"]
[Black "Papasimakopoulos, Alexandros"]
[WhiteFideId "6405096"]
[BlackFideId "4244125"]
[WhiteElo "2244"]
[BlackElo "2340"]
[Result "0-1"]
[Round "08"]
[TimeControl "180+1"]
[Date "2022.07.26"]
[WhiteClock "0:00:13"]
[BlackClock "0:01:13"]

1. e4 {[%clk 0:03:00]}  e6 {[%clk 0:03:00]} 2. d4 {[%clk 0:02:59]}  d5 {[%clk 0:03:00]} 3. exd5 {[%clk 0:03:00]}  exd5 {[%clk 0:03:01]} 4. Nf3 {[%clk 0:03:00]}  Bg4 {[%clk 0:03:01]} 5. Bd3 {[%clk 0:03:01]}  Bd6 {[%clk 0:03:00]} 6. O-O {[%clk 0:03:01]}  Nc6 {[%clk 0:03:01]} 7. Re1+ {[%clk 0:02:59]}  Nge7 {[%clk 0:03:00]} 8. c3 {[%clk 0:03:00]}  Qd7 {[%clk 0:03:00]} 9. Be3 {[%clk 0:03:01]}  f6 {[%clk 0:02:59]} 10. Nbd2 {[%clk 0:03:01]}  h5 {[%clk 0:02:56]} 11. Qc2 {[%clk 0:02:59]}  O-O-O {[%clk 0:02:54]} 12. b4 {[%clk 0:02:59]}  Bf5 {[%clk 0:02:54]} 13. a4 {[%clk 0:02:58]}  Bxd3 {[%clk 0:02:53]} 14. Qxd3 {[%clk 0:02:58]}  Qf5 {[%clk 0:02:54]} 15. Qxf5+ {[%clk 0:02:51]}  Nxf5 {[%clk 0:02:55]} 16. Nf1 {[%clk 0:02:51]}  g5 {[%clk 0:02:53]} 17. Ng3 {[%clk 0:02:45]}  Nce7 {[%clk 0:02:53]} 18. Nxf5 {[%clk 0:02:43]}  Nxf5 {[%clk 0:02:53]} 19. Nd2 {[%clk 0:02:40]}  g4 {[%clk 0:02:50]} 20. Nf1 {[%clk 0:02:37]}  h4 {[%clk 0:02:49]} 21. Bd2 {[%clk 0:02:36]}  Kd7 {[%clk 0:02:46]} 22. Re2 {[%clk 0:02:36]}  Rdg8 {[%clk 0:02:41]} 23. Rae1 {[%clk 0:02:35]}  a6 {[%clk 0:02:37]} 24. Ne3 {[%clk 0:02:35]}  Nxe3 {[%clk 0:02:34]} 25. Rxe3 {[%clk 0:02:35]}  f5 {[%clk 0:02:26]} 26. Re6 {[%clk 0:02:28]}  f4 {[%clk 0:02:06]} 27. Rf6 {[%clk 0:00:52]}  f3 {[%clk 0:02:00]} 28. Rf7+ {[%clk 0:00:45]}  Kc8 {[%clk 0:01:58]} 29. Bf4 {[%clk 0:00:40]}  Bxf4 {[%clk 0:01:56]} 30. Rxf4 {[%clk 0:00:40]}  fxg2 {[%clk 0:01:52]} 31. Kxg2 {[%clk 0:00:40]}  Rh7 {[%clk 0:01:46]} 32. Re5 {[%clk 0:00:37]}  c6 {[%clk 0:01:46]} 33. Ref5 {[%clk 0:00:33]}  Rgg7 {[%clk 0:01:36]} 34. Rf8+ {[%clk 0:00:27]}  Kc7 {[%clk 0:01:36]} 35. Re8 {[%clk 0:00:27]}  Kb6 {[%clk 0:01:31]} 36. Ref8 {[%clk 0:00:25]}  a5 {[%clk 0:01:24]} 37. Ra8 {[%clk 0:00:19]}  axb4 {[%clk 0:01:22]} 38. cxb4 {[%clk 0:00:19]}  Rg6 {[%clk 0:01:17]} 39. Kf1 {[%clk 0:00:16]}  Re7 {[%clk 0:01:16]} 40. Raf8 {[%clk 0:00:14]}  g3 {[%clk 0:01:13]} 41. hxg3 {[%clk 0:00:14]}  hxg3 {[%clk 0:01:14]} 42. R8f6 {[%clk 0:00:13]}  g2+ {[%clk 0:01:13]} 0-1


[Site "https://www.chess.com"]

[Event "Titled Tuesday Blitz July 26 Early 2022"]
[White "Jeet, Jain"]
[Black "Demin, Vladimir"]
[WhiteFideId "5073022"]
[BlackFideId "4167457"]
[WhiteElo "2055"]
[BlackElo "2422"]
[Result "1-0"]
[Round "08"]
[TimeControl "180+1"]
[Date "2022.07.27"]
[WhiteClock "0:00:43"]
[BlackClock "0:00:01"]

1. b4 {[%clk 0:03:00]}  e5 {[%clk 0:02:57]} 2. Bb2 {[%clk 0:03:00]}  Bxb4 {[%clk 0:02:57]} 3. Bxe5 {[%clk 0:02:59]}  Nf6 {[%clk 0:02:56]} 4. Nf3 {[%clk 0:02:59]}  O-O {[%clk 0:02:55]} 5. e3 {[%clk 0:02:59]}  d5 {[%clk 0:02:54]} 6. c4 {[%clk 0:02:58]}  Nbd7 {[%clk 0:02:43]} 7. Bb2 {[%clk 0:02:58]}  Re8 {[%clk 0:02:34]} 8. Be2 {[%clk 0:02:58]}  dxc4 {[%clk 0:02:31]} 9. Bxc4 {[%clk 0:02:56]}  a6 {[%clk 0:02:31]} 10. Ng5 {[%clk 0:02:50]}  Re7 {[%clk 0:02:23]} 11. Qb3 {[%clk 0:02:44]}  Qf8 {[%clk 0:02:11]} 12. O-O {[%clk 0:02:32]}  Bd6 {[%clk 0:02:06]} 13. Nc3 {[%clk 0:02:31]}  b5 {[%clk 0:02:03]} 14. Be2 {[%clk 0:02:24]}  Bb7 {[%clk 0:02:02]} 15. Qc2 {[%clk 0:02:21]}  h6 {[%clk 0:01:34]} 16. Nf3 {[%clk 0:02:17]}  Qe8 {[%clk 0:01:31]} 17. h3 {[%clk 0:02:13]}  Rc8 {[%clk 0:01:27]} 18. a3 {[%clk 0:02:05]}  c5 {[%clk 0:01:26]} 19. Qb3 {[%clk 0:02:04]}  c4 {[%clk 0:01:23]} 20. Qc2 {[%clk 0:02:04]}  Bb8 {[%clk 0:01:23]} 21. Na2 {[%clk 0:02:04]}  Qd8 {[%clk 0:01:19]} 22. a4 {[%clk 0:02:04]}  Qc7 {[%clk 0:01:19]} 23. g3 {[%clk 0:02:02]}  Be4 {[%clk 0:01:09]} 24. Qc3 {[%clk 0:02:01]}  Qb7 {[%clk 0:01:07]} 25. Nd4 {[%clk 0:01:58]}  Bg2 {[%clk 0:00:52]} 26. Nf5 {[%clk 0:01:51]}  Re5 {[%clk 0:00:52]} 27. Nh4 {[%clk 0:01:48]}  Bc6 {[%clk 0:00:38]} 28. Nb4 {[%clk 0:01:44]}  Rg5 {[%clk 0:00:29]} 29. Nxc6 {[%clk 0:01:43]}  Qxc6 {[%clk 0:00:30]} 30. axb5 {[%clk 0:01:43]}  axb5 {[%clk 0:00:30]} 31. Bf3 {[%clk 0:01:42]}  Qe6 {[%clk 0:00:27]} 32. Kh2 {[%clk 0:01:34]}  Ne5 {[%clk 0:00:23]} 33. Bg2 {[%clk 0:01:31]}  Rh5 {[%clk 0:00:20]} 34. f4 {[%clk 0:01:30]}  Nd3 {[%clk 0:00:19]} 35. Ba3 {[%clk 0:01:27]}  Nd5 {[%clk 0:00:14]} 36. Qd4 {[%clk 0:01:24]}  Bc7 {[%clk 0:00:12]} 37. f5 {[%clk 0:01:17]}  Qd7 {[%clk 0:00:10]} 38. Bxd5 {[%clk 0:01:13]}  Rd8 {[%clk 0:00:07]} 39. Qg4 {[%clk 0:00:55]}  Qxd5 {[%clk 0:00:06]} 40. Qxh5 {[%clk 0:00:54]}  Ne5 {[%clk 0:00:02]} 41. Rf2 {[%clk 0:00:52]}  Nd3 {[%clk 0:00:02]} 42. Rg2 {[%clk 0:00:51]}  b4 {[%clk 0:00:02]} 43. Bxb4 {[%clk 0:00:49]}  Nxb4 {[%clk 0:00:03]} 44. Ra7 {[%clk 0:00:49]}  Bb6 {[%clk 0:00:01]} 45. Re7 {[%clk 0:00:47]}  Nd3 {[%clk 0:00:01]} 46. Qg4 {[%clk 0:00:44]}  Ne1 {[%clk 0:00:01]} 47. Re2 {[%clk 0:00:43]} 1-0


[Site "https://www.chess.com"]

[Event "Titled Tuesday Blitz July 26 Early 2022"]
[White "Korchmar, Vasiliy"]
[Black "Manukyan, Sargis A."]
[WhiteFideId "24131750"]
[BlackFideId "13303970"]
[WhiteElo "2370"]
[BlackElo "2187"]
[Result "0-1"]
[Round "08"]
[TimeControl "180+1"]
[Date "2022.07.27"]
[WhiteClock "0:00:22"]
[BlackClock "0:00:37"]

1. e4 {[%clk 0:03:00]}  e6 {[%clk 0:02:58]} 2. d4 {[%clk 0:02:58]}  d5 {[%clk 0:02:59]} 3. e5 {[%clk 0:02:59]}  c5 {[%clk 0:02:58]} 4. c3 {[%clk 0:02:59]}  Nc6 {[%clk 0:02:59]} 5. Nf3 {[%clk 0:03:00]}  Nh6 {[%clk 0:03:00]} 6. Bxh6 {[%clk 0:02:59]}  gxh6 {[%clk 0:02:59]} 7. Be2 {[%clk 0:02:49]}  Bg7 {[%clk 0:02:55]} 8. Nbd2 {[%clk 0:02:41]}  cxd4 {[%clk 0:02:51]} 9. cxd4 {[%clk 0:02:40]}  f6 {[%clk 0:02:52]} 10. exf6 {[%clk 0:02:32]}  Qxf6 {[%clk 0:02:52]} 11. Bb5 {[%clk 0:02:26]}  O-O {[%clk 0:02:49]} 12. Bxc6 {[%clk 0:02:23]}  bxc6 {[%clk 0:02:50]} 13. O-O {[%clk 0:02:24]}  c5 {[%clk 0:02:46]} 14. dxc5 {[%clk 0:02:17]}  Qxb2 {[%clk 0:02:47]} 15. Rc1 {[%clk 0:02:13]}  Qxa2 {[%clk 0:02:20]} 16. Re1 {[%clk 0:02:12]}  Qb2 {[%clk 0:02:08]} 17. Nf1 {[%clk 0:02:09]}  a5 {[%clk 0:02:03]} 18. Ng3 {[%clk 0:02:09]}  a4 {[%clk 0:01:57]} 19. Nh5 {[%clk 0:02:09]}  a3 {[%clk 0:01:44]} 20. Nxg7 {[%clk 0:02:04]}  Qxg7 {[%clk 0:01:44]} 21. Ra1 {[%clk 0:01:55]}  Rf4 {[%clk 0:01:25]} 22. Re3 {[%clk 0:01:45]}  a2 {[%clk 0:01:24]} 23. Ne5 {[%clk 0:01:41]}  Rf5 {[%clk 0:01:16]} 24. f4 {[%clk 0:01:34]}  Kh8 {[%clk 0:01:07]} 25. Rg3 {[%clk 0:01:24]}  Qf6 {[%clk 0:01:05]} 26. Qg4 {[%clk 0:01:25]}  Ba6 {[%clk 0:00:48]} 27. Rf3 {[%clk 0:00:35]}  Be2 {[%clk 0:00:46]} 28. g3 {[%clk 0:00:26]}  Bxf3 {[%clk 0:00:44]} 29. Qxf3 {[%clk 0:00:27]}  Qxe5 {[%clk 0:00:42]} 30. Qd1 {[%clk 0:00:18]}  Qe3+ {[%clk 0:00:39]} 31. Kh1 {[%clk 0:00:18]}  Qxc5 {[%clk 0:00:35]} 32. Qd2 {[%clk 0:00:18]}  Qc4 {[%clk 0:00:34]} 33. Qb2+ {[%clk 0:00:19]}  d4 {[%clk 0:00:34]} 34. Qb7 {[%clk 0:00:19]}  Qd5+ {[%clk 0:00:34]} 35. Qxd5 {[%clk 0:00:16]}  Rxd5 {[%clk 0:00:34]} 36. Kg2 {[%clk 0:00:17]}  d3 {[%clk 0:00:35]} 37. Kf3 {[%clk 0:00:17]}  d2 {[%clk 0:00:35]} 38. Ke2 {[%clk 0:00:18]}  d1=Q+ {[%clk 0:00:36]} 39. Rxd1 {[%clk 0:00:19]}  Rxd1 {[%clk 0:00:36]} 40. Kxd1 {[%clk 0:00:20]}  a1=Q+ {[%clk 0:00:36]} 41. Ke2 {[%clk 0:00:21]}  Qc3 {[%clk 0:00:37]} 42. Kf2 {[%clk 0:00:21]}  Ra2+ {[%clk 0:00:37]} 43. Kg1 {[%clk 0:00:22]}  Qe1# {[%clk 0:00:37]} 0-1


[Site "https://www.chess.com"]

[Event "Titled Tuesday Blitz July 26 Early 2022"]
[White "Kuderinov, Kirill"]
[Black "Dushyant Sharma"]
[WhiteFideId "13701568"]
[BlackFideId "25065130"]
[WhiteElo "2465"]
[BlackElo "2105"]
[Result "1-0"]
[Round "08"]
[TimeControl "180+1"]
[Date "2022.07.27"]
[WhiteClock "0:01:16"]
[BlackClock "0:00:35"]

1. e4 {[%clk 0:03:00]}  d5 {[%clk 0:03:00]} 2. exd5 {[%clk 0:03:00]}  Nf6 {[%clk 0:03:00]} 3. Nf3 {[%clk 0:02:59]}  Bg4 {[%clk 0:02:59]} 4. d4 {[%clk 0:02:58]}  Qxd5 {[%clk 0:02:59]} 5. Be2 {[%clk 0:02:58]}  Nc6 {[%clk 0:03:00]} 6. Nc3 {[%clk 0:02:57]}  Qf5 {[%clk 0:02:58]} 7. h3 {[%clk 0:02:53]}  Bh5 {[%clk 0:02:58]} 8. g4 {[%clk 0:02:48]}  Nxg4 {[%clk 0:02:53]} 9. hxg4 {[%clk 0:02:49]}  Bxg4 {[%clk 0:02:54]} 10. Nh4 {[%clk 0:02:44]}  Bxe2 {[%clk 0:02:54]} 11. Nxf5 {[%clk 0:02:37]}  Bxd1 {[%clk 0:02:54]} 12. Nxd1 {[%clk 0:02:36]}  e6 {[%clk 0:02:48]} 13. Nfe3 {[%clk 0:02:28]}  Nxd4 {[%clk 0:02:49]} 14. c3 {[%clk 0:02:29]}  Nc6 {[%clk 0:02:48]} 15. Nc4 {[%clk 0:02:28]}  O-O-O {[%clk 0:02:47]} 16. Ke2 {[%clk 0:02:26]}  h5 {[%clk 0:02:46]} 17. b4 {[%clk 0:02:22]}  f6 {[%clk 0:02:40]} 18. b5 {[%clk 0:02:22]}  Ne7 {[%clk 0:02:40]} 19. Nde3 {[%clk 0:02:19]}  g5 {[%clk 0:02:38]} 20. a4 {[%clk 0:02:19]}  Bg7 {[%clk 0:02:38]} 21. a5 {[%clk 0:02:19]}  f5 {[%clk 0:02:38]} 22. Ba3 {[%clk 0:02:16]}  Nd5 {[%clk 0:02:35]} 23. Nxd5 {[%clk 0:02:13]}  exd5 {[%clk 0:02:35]} 24. Ne3 {[%clk 0:02:10]}  f4 {[%clk 0:02:22]} 25. Nf5 {[%clk 0:02:08]}  Bxc3 {[%clk 0:02:22]} 26. Rad1 {[%clk 0:02:01]}  d4 {[%clk 0:02:19]} 27. a6 {[%clk 0:01:57]}  bxa6 {[%clk 0:02:16]} 28. bxa6 {[%clk 0:01:57]}  g4 {[%clk 0:02:06]} 29. Kd3 {[%clk 0:01:55]}  Rh7 {[%clk 0:01:50]} 30. Ne7+ {[%clk 0:01:52]}  Kd7 {[%clk 0:01:46]} 31. Nd5 {[%clk 0:01:52]}  g3 {[%clk 0:01:34]} 32. Nf6+ {[%clk 0:01:48]}  Ke6 {[%clk 0:01:34]} 33. Nxh7 {[%clk 0:01:49]}  g2 {[%clk 0:01:32]} 34. Rxh5 {[%clk 0:01:47]}  Rg8 {[%clk 0:01:32]} 35. Ng5+ {[%clk 0:01:25]}  Kf5 {[%clk 0:01:31]} 36. Nf3+ {[%clk 0:01:25]}  Kg4 {[%clk 0:01:32]} 37. Rg5+ {[%clk 0:01:26]}  Rxg5 {[%clk 0:01:28]} 38. Nxg5 {[%clk 0:01:26]}  Kxg5 {[%clk 0:01:28]} 39. Bc5 {[%clk 0:01:21]}  Kg4 {[%clk 0:01:28]} 40. Bxa7 {[%clk 0:01:21]}  Kf3 {[%clk 0:01:12]} 41. Bxd4 {[%clk 0:01:20]}  Bxd4 {[%clk 0:01:12]} 42. Kxd4 {[%clk 0:01:21]}  Ke2 {[%clk 0:00:54]} 43. Ra1 {[%clk 0:01:20]}  Kxf2 {[%clk 0:00:49]} 44. a7 {[%clk 0:01:17]}  g1=Q {[%clk 0:00:38]} 45. Rxg1 {[%clk 0:01:15]}  Kxg1 {[%clk 0:00:39]} 46. a8=Q {[%clk 0:01:16]}  Kf2 {[%clk 0:00:36]} 47. Ke4 {[%clk 0:01:15]}  f3 {[%clk 0:00:36]} 48. Qa2+ {[%clk 0:01:16]}  Kg3 {[%clk 0:00:35]} 49. Qb3 {[%clk 0:01:16]} 1-0


[Site "https://www.chess.com"]

[Event "Titled Tuesday Blitz July 26 Early 2022"]
[White "Lewtak, Damian"]
[Black "Zemlyanskii, Ivan"]
[WhiteFideId "1141724"]
[BlackFideId "24249971"]
[WhiteElo "2359"]
[BlackElo "1815"]
[Result "1-0"]
[Round "08"]
[TimeControl "180+1"]
[Date "2022.07.27"]
[WhiteClock "0:00:30"]
[BlackClock "0:00:11"]

1. e4 {[%clk 0:03:00]}  c5 {[%clk 0:02:59]} 2. Nf3 {[%clk 0:02:59]}  e6 {[%clk 0:02:58]} 3. d4 {[%clk 0:02:55]}  cxd4 {[%clk 0:02:58]} 4. Nxd4 {[%clk 0:02:56]}  Nf6 {[%clk 0:02:59]} 5. Nc3 {[%clk 0:02:55]}  Nc6 {[%clk 0:02:56]} 6. Ndb5 {[%clk 0:02:50]}  Bc5 {[%clk 0:02:56]} 7. Bf4 {[%clk 0:02:45]}  O-O {[%clk 0:02:56]} 8. Bd6 {[%clk 0:02:45]}  b6 {[%clk 0:02:44]} 9. Bxf8 {[%clk 0:02:31]}  Qxf8 {[%clk 0:02:44]} 10. a4 {[%clk 0:02:20]}  Ne5 {[%clk 0:02:32]} 11. Be2 {[%clk 0:02:14]}  Bb7 {[%clk 0:02:32]} 12. f4 {[%clk 0:02:08]}  Ng6 {[%clk 0:02:29]} 13. g3 {[%clk 0:01:57]}  a6 {[%clk 0:00:21]} 14. Na3 {[%clk 0:01:56]}  Rc8 {[%clk 0:00:20]} 15. Bf3 {[%clk 0:01:56]}  d5 {[%clk 0:00:21]} 16. Qd3 {[%clk 0:01:45]}  Rd8 {[%clk 0:00:20]} 17. exd5 {[%clk 0:01:36]}  exd5 {[%clk 0:00:19]} 18. Kf1 {[%clk 0:01:23]}  d4 {[%clk 0:00:17]} 19. Ne4 {[%clk 0:01:15]}  Nd5 {[%clk 0:00:16]} 20. Nxc5 {[%clk 0:01:10]}  Ne3+ {[%clk 0:00:15]} 21. Kf2 {[%clk 0:01:08]}  Bxf3 {[%clk 0:00:07]} 22. Kxf3 {[%clk 0:01:06]}  Qxc5 {[%clk 0:00:08]} 23. Rhe1 {[%clk 0:01:03]}  f5 {[%clk 0:00:07]} 24. Rxe3 {[%clk 0:00:51]}  Qd5+ {[%clk 0:00:07]} 25. Ke2 {[%clk 0:00:36]}  dxe3 {[%clk 0:00:08]} 26. Qxd5+ {[%clk 0:00:33]}  Rxd5 {[%clk 0:00:09]} 27. Kxe3 {[%clk 0:00:32]}  Ne7 {[%clk 0:00:05]} 28. Ke2 {[%clk 0:00:30]}  Rc5 {[%clk 0:00:05]} 29. c3 {[%clk 0:00:29]}  Rc7 {[%clk 0:00:06]} 30. Rd1 {[%clk 0:00:28]}  Kf7 {[%clk 0:00:06]} 31. Rd6 {[%clk 0:00:28]}  Rc6 {[%clk 0:00:07]} 32. Rxc6 {[%clk 0:00:28]}  Nxc6 {[%clk 0:00:07]} 33. Kd3 {[%clk 0:00:29]}  b5 {[%clk 0:00:08]} 34. axb5 {[%clk 0:00:28]}  axb5 {[%clk 0:00:09]} 35. Nxb5 {[%clk 0:00:29]}  Ke6 {[%clk 0:00:10]} 36. Nd4+ {[%clk 0:00:29]}  Nxd4 {[%clk 0:00:11]} 37. Kxd4 {[%clk 0:00:30]}  Kd6 {[%clk 0:00:11]} 1-0


[Site "https://www.chess.com"]